fUSD/lending_fUSD_20250930
["ID","MTS","AMOUNT","RATE_DAILY","PERIOD"]
[388570164,1759243893544,-871.940278,0.00019452,2]
[388570165,1759243893559,-369.687376,0.00019452,2]
[388570166,1759243893568,-151.0,0.00019452,2]
[388570167,1759243893581,-681.713007,0.00019452,2]
[388570168,1759243893591,-8045.861984,0.00019452,2]
[388570169,1759243893600,-500.0,0.00019452,2]
[388570170,1759243893610,-7000.6,0.00019452,2]
[388570171,1759243893621,-600.129215,0.00019452,2]
[388570172,1759243893630,-657.44,0.00019452,2]
[388570173,1759243893640,-500.0,0.00019452,2]
[388570174,1759243893650,-681.713007,0.00019452,2]
[388570175,1759243893659,-369.687376,0.00019452,2]
[388570176,1759243893670,-2781.0,0.00019452,2]
[388570177,1759243893681,-151.0,0.00019452,2]
[388570178,1759243893690,-500.0,0.00019452,2]
[388570179,1759243893700,-3560.12,0.00019452,2]
[388570180,1759243893709,-681.713007,0.00019452,2]
[388570181,1759243893718,-153.011882,0.00019452,2]
[388570182,1759243893728,-6705.33,0.00019452,2]
[388570183,1759243893737,-1231.01,0.00019452,2]
[388570184,1759243893747,-681.713007,0.00019452,2]
[388570185,1759243893756,-153.011882,0.00019452,2]
[388570186,1759243893765,-775.98,0.00019452,2]
[388570187,1759243893775,-281.603193,0.00019452,2]
[388570188,1759243893785,-1000.94,0.00019452,2]
[388570189,1759243893794,-310.05257804,0.00019452,2]
[388570190,1759243893803,-153.011882,0.00019452,2]
[388570191,1759243893814,-3568.97,0.00019452,2]
[388570192,1759243893825,-500.0,0.00019452,2]
[388570193,1759243893835,-281.603193,0.00019452,2]
[388570194,1759243893845,-153.011882,0.00019452,2]
[388570195,1759243893855,-281.603193,0.00019452,2]
[388570196,1759243893864,-4512.75,0.00019452,2]
[388570197,1759243893874,-8103.56,0.00019452,2]
[388570198,1759243893883,-3368.85,0.00019452,2]
[388570199,1759243893893,-281.603193,0.00019452,2]
[388570200,1759243893902,-454.57103204,0.00019452,2]
[388570201,1759243893912,-1121.26,0.00019452,2]
[388570202,1759243893921,-1776.53,0.00019452,2]
[388570203,1759243893931,-6876.3,0.00019452,2]
[388570204,1759243893941,-500.0,0.00019452,2]
[388570205,1759243893950,-1314.79,0.00019452,2]
[388570206,1759243893960,-254.812938,0.00019452,2]
[388570207,1759243893969,-3656.19,0.00019452,2]
[388570208,1759243893979,-500.0,0.00019452,2]
[388570209,1759243893988,-2233.98,0.00019452,2]
[388570210,1759243893998,-541.6,0.00019452,2]
[388570211,1759243894007,-10218.68,0.00019452,2]
[388570212,1759243894017,-254.812938,0.00019452,2]
[388570213,1759243894028,-500.0,0.00019452,2]
[388570214,1759243894038,-351.38652156,0.00019452,2]
[388570215,1759243894052,-500.0,0.00019452,2]
[388570216,1759243894062,-1506.46,0.00019452,2]
[388570217,1759243894074,-254.812938,0.00019452,2]
[388570218,1759243894086,-500.0,0.00019452,2]
[388570219,1759243894095,-3871.47,0.00019452,2]
[388570220,1759243894105,-583.56,0.00019452,2]
[388570221,1759243894114,-254.812938,0.00019452,2]
[388570222,1759243894126,-5086.08,0.00019452,2]
[388570223,1759243894135,-895.49,0.00019452,2]
[388570224,1759243894145,-3586.23,0.00019452,2]
[388570225,1759243894154,-500.0,0.00019452,2]
[388570226,1759243894163,-2695.83,0.00019452,2]
[388570227,1759243894173,-500.0,0.00019452,2]
[388570228,1759243894182,-500.0,0.00019452,2]
[388570229,1759243894192,-508.48956528,0.00019452,2]
[388570230,1759243894201,-6488.25,0.00019452,2]
[388570231,1759243894210,-500.0,0.00019452,2]
[388570232,1759243894220,-1256.35,0.00019452,2]
[388570233,1759243894229,-500.0,0.00019452,2]
[388570234,1759243894238,-4456.96,0.00019452,2]
[388570235,1759243894248,-500.0,0.00019452,2]
[388570236,1759243894268,-500.0,0.00019452,2]
[388570237,1759243894280,-500.0,0.00019452,2]
[388570238,1759243894290,-303.42266855,0.00019452,2]
[388570239,1759243894299,-500.0,0.00019452,2]
[388570240,1759243894310,-2505.87,0.00019452,2]
[388570241,1759243894320,-151.0,0.00019452,2]
[388570242,1759243894330,-6873.68,0.00019452,2]
[388570243,1759243894340,-9467.31,0.00019452,2]
[388570244,1759243894350,-3504.09,0.00019452,2]
[388570245,1759243894361,-500.0,0.00019452,2]
[388570246,1759243894371,-151.0,0.00019452,2]
[388570247,1759243894381,-1110.09,0.00019452,2]
[388570248,1759243894391,-4717.63,0.00019452,2]
[388570249,1759243894401,-3621.04,0.00019452,2]
[388570250,1759243894410,-151.0,0.00019452,2]
[388570251,1759243894420,-951.58,0.00019452,2]
[388570252,1759243894430,-500.0,0.00019452,2]
[388570253,1759243894444,-3703.76,0.00019452,2]
[388570254,1759243894454,-453.653871,0.00019452,2]
[388570255,1759243894464,-529.91,0.00019452,2]
[388570256,1759243894474,-500.0,0.00019452,2]
[388570257,1759243894485,-995.39,0.00019452,2]
[388570258,1759243894494,-678.67,0.00019452,2]
[388570259,1759243894504,-151.0,0.00019452,2]
[388570260,1759243894514,-5656.93,0.00019452,2]
[388570261,1759243894525,-1838.2,0.00019452,2]
[388570262,1759243894534,-453.653871,0.00019452,2]
[388570263,1759243894544,-505.11,0.00019452,2]
[388570264,1759243894556,-500.0,0.00019452,2]
[388570265,1759243894566,-864.482333,0.00019452,2]
[388570266,1759243894576,-453.653871,0.00019452,2]
[388570267,1759243894588,-4257.23,0.00019452,2]
[388570268,1759243894597,-1771.49,0.00019452,2]
[388570269,1759243894607,-583.2,0.00019452,2]
[388570270,1759243894617,-151.0,0.00019452,2]
[388570271,1759243894627,-4153.83,0.00019452,2]
[388570272,1759243894637,-4028.6,0.00019452,2]
[388570273,1759243894648,-864.482333,0.00019452,2]
[388570274,1759243894658,-453.653871,0.00019452,2]
[388570275,1759243894668,-560.67,0.00019452,2]
[388570276,1759243894678,-151.0,0.00019452,2]
[388570277,1759243894688,-500.0,0.00019452,2]
[388570278,1759243894698,-500.0,0.00019452,2]
[388570279,1759243894707,-864.482333,0.00019452,2]
[388570280,1759243894717,-500.0,0.00019452,2]
[388570281,1759243894726,-500.0,0.00019452,2]
[388570282,1759243894737,-596.8,0.00019452,2]
[388570283,1759243894748,-500.0,0.00019452,2]
[388570284,1759243894757,-500.0,0.00019452,2]
[388570285,1759243894767,-1643.92,0.00019452,2]
[388570286,1759243894779,-500.0,0.00019452,2]
[388570287,1759243894789,-3621.62,0.00019452,2]
[388570288,1759243894799,-1640.77,0.00019452,2]
[388570289,1759243894809,-500.0,0.00019452,2]
[388570290,1759243894818,-864.482333,0.00019452,2]
[388570291,1759243894828,-500.0,0.00019452,2]
[388570292,1759243894838,-1838.07,0.00019452,2]
[388570293,1759243894853,-305.25104859,0.00019452,2]
[388570294,1759243894863,-10507.95,0.00019452,2]
[388570295,1759243894873,-151.0,0.00019452,2]
[388570296,1759243894883,-647.37,0.00019452,2]
[388570297,1759243894892,-500.0,0.00019452,2]
[388570298,1759243894903,-151.0,0.00019452,2]
[388570299,1759243894913,-3128.07,0.00019452,2]
[388570300,1759243894923,-559.149776,0.00019452,2]
[388570301,1759243894933,-500.0,0.00019452,2]
[388570302,1759243894944,-500.0,0.00019452,2]
[388570303,1759243894954,-500.0,0.00019452,2]
[388570304,1759243894964,-500.0,0.00019452,2]
[388570305,1759243894974,-151.0,0.00019452,2]
[388570306,1759243894984,-151.0,0.00019452,2]
[388570307,1759243894994,-151.0,0.00019452,2]
[388570308,1759243895003,-559.149776,0.00019452,2]
[388570309,1759243895014,-732.05,0.00019452,2]
[388570310,1759243895025,-151.0,0.00019452,2]
[388570311,1759243895035,-6717.68,0.00019452,2]
[388570312,1759243895049,-151.0,0.00019452,2]
[388570313,1759243895059,-151.0,0.00019452,2]
[388570314,1759243895069,-559.149776,0.00019452,2]
[388570315,1759243895079,-500.0,0.00019452,2]
[388570316,1759243895088,-2440.56,0.00019452,2]
[388570317,1759243895099,-151.0,0.00019452,2]
[388570318,1759243895109,-321.66959,0.00019452,2]
[388570319,1759243895118,-964.67,0.00019452,2]
[388570320,1759243895130,-500.0,0.00019452,2]
[388570321,1759243895142,-321.66959,0.00019452,2]
[388570322,1759243895152,-151.0,0.00019452,2]
[388570323,1759243895162,-513.17420713,0.00019452,2]
[388570324,1759243895172,-151.0,0.00019452,2]
[388570325,1759243895182,-500.0,0.00019466,2]
[388570326,1759243895192,-150.0,0.00019473,2]
[388570327,1759243895202,-1263.0,0.00019474,2]
[388570328,1759243895212,-3398.0,0.00019474,2]
[388570329,1759243895222,-889.448,0.00019474,2]
[388570330,1759243895232,-2044.0,0.00019474,2]
[388570331,1759243895242,-570.0,0.00019474,2]
[388570332,1759243895252,-603.0,0.00019474,2]
[388570333,1759243895262,-1306.0,0.00019474,2]
[388570334,1759243895274,-1584.0,0.00019474,2]
[388570335,1759243895286,-814.0,0.00019474,2]
[388570336,1759243895295,-4113.0,0.00019474,2]
[388570337,1759243895306,-6251.609,0.00019474,2]
[388570338,1759243895315,-621.0,0.00019474,2]
[388570339,1759243895325,-18919.0,0.00019474,2]
[388570340,1759243895335,-522.58,0.00019487,2]
[388570341,1759243895345,-344797.87078173,0.000195,2]
[388570342,1759243895355,-1000.0,0.000195,2]
[388570343,1759243895365,-174.18,0.00019509,2]
[388570344,1759243895376,-200.0,0.0001951,2]
[388570345,1759243895386,-1508964.10988317,0.00019514,2]
[388570346,1759243895396,-537.47,0.00019539,2]
[388570347,1759243895406,-185.0,0.00019572,2]
[388570348,1759243895416,-293.98004548,0.00019589,2]
[388570349,1759243895426,-241.84174431,0.00019589,2]
[388570350,1759243895436,-191.37302293,0.00019589,2]
[388570351,1759243895446,-1147.63649996,0.00019626,2]
[388570352,1759243895456,-560.02835348,0.00019626,2]
[388570353,1759243895466,-1634.5117507,0.00019636,2]
[388570354,1759243895476,-8901.2678668,0.00019636,2]
[388570355,1759243895486,-1759.88,0.00019639,2]
[388570356,1759243895496,-185.5,0.0001964,2]
[388570357,1759243895506,-453.653871,0.0001964,2]
[388570358,1759243895516,-453.653871,0.0001964,2]
[388570359,1759243895529,-864.482333,0.0001964,2]
[388570360,1759243895539,-453.653871,0.0001964,2]
[388570361,1759243895549,-248.329994,0.0001964,2]
[388570362,1759243895559,-453.653871,0.0001964,2]
[388570363,1759243895569,-864.482333,0.0001964,2]
[388570364,1759243895579,-151.0,0.0001964,2]
[388570365,1759243895589,-864.482333,0.0001964,2]
[388570366,1759243895600,-864.482333,0.0001964,2]
[388570367,1759243895610,-151.0,0.0001964,2]
[388570368,1759243895620,-151.0,0.0001964,2]
[388570369,1759243895631,-559.149776,0.0001964,2]
[388570370,1759243895640,-151.0,0.0001964,2]
[388570371,1759243895650,-151.0,0.0001964,2]
[388570372,1759243895660,-151.0,0.0001964,2]
[388570373,1759243895670,-559.149776,0.0001964,2]
[388570374,1759243895679,-151.0,0.0001964,2]
[388570375,1759243895689,-151.0,0.0001964,2]
[388570376,1759243895699,-151.0,0.0001964,2]
[388570377,1759243895709,-559.149776,0.0001964,2]
[388570378,1759243895719,-151.0,0.0001964,2]
[388570379,1759243895729,-321.66959,0.0001964,2]
[388570380,1759243895739,-321.66959,0.0001964,2]
[388570381,1759243895749,-298.940506,0.0001964,2]
[388570382,1759243895759,-151.0,0.0001964,2]
[388570383,1759243895768,-485.0,0.00019653,2]
[388570384,1759243895780,-185.0,0.00019656,2]
[388570385,1759243895791,-293.98004548,0.00019671,2]
[388570386,1759243895801,-241.84174431,0.00019671,2]
[388570387,1759243895812,-191.37302293,0.00019671,2]
[388570388,1759243895822,-451.0,0.00019676,2]
[388570389,1759243895833,-500.0,0.00019676,2]
[388570390,1759243895843,-185.0,0.00019683,2]
[388570391,1759243895855,-2022.25836536,0.000197,3]
[388570392,1759243895866,-3000.0,0.00019712,2]
[388570393,1759243895876,-3000.0,0.00019712,2]
[388570394,1759243895887,-3000.0,0.00019712,2]
[388570395,1759243895898,-162.246859,0.0001972,2]
[388570396,1759243895908,-151.0,0.0001972,2]
[388570397,1759243895918,-151.0,0.0001972,2]
[388570398,1759243895928,-151.0,0.0001972,2]
[388570399,1759243895937,-151.0,0.0001972,2]
[388570400,1759243895947,-8045.861984,0.0001972,2]
[388570401,1759243895957,-600.129215,0.0001972,2]
[388570402,1759243895968,-8045.861984,0.0001972,2]
[388570403,1759243895977,-369.687376,0.0001972,2]
[388570404,1759243895987,-600.129215,0.0001972,2]
[388570405,1759243895997,-369.687376,0.0001972,2]
[388570406,1759243896007,-8045.861984,0.0001972,2]
[388570407,1759243896017,-600.129215,0.0001972,2]
[388570408,1759243896028,-369.687376,0.0001972,2]
[388570409,1759243896038,-681.713007,0.0001972,2]
[388570410,1759243896053,-8045.861984,0.0001972,2]
[388570411,1759243896063,-600.129215,0.0001972,2]
[388570412,1759243896073,-681.713007,0.0001972,2]
[388570413,1759243896084,-369.687376,0.0001972,2]
[388570414,1759243896095,-681.713007,0.0001972,2]
[388570415,1759243896104,-153.011882,0.0001972,2]
[388570416,1759243896114,-681.713007,0.0001972,2]
[388570417,1759243896123,-153.011882,0.0001972,2]
[388570418,1759243896133,-153.011882,0.0001972,2]
[388570419,1759243896144,-153.011882,0.0001972,2]
[388570420,1759243896154,-254.812938,0.0001972,2]
[388570421,1759243896165,-254.812938,0.0001972,2]
[388570422,1759243896174,-254.812938,0.0001972,2]
[388570423,1759243896185,-254.812938,0.0001972,2]
[388570424,1759243896196,-151.0,0.0001972,2]
[388570425,1759243896207,-151.0,0.0001972,2]
[388570426,1759243896217,-151.0,0.0001972,2]
[388570427,1759243896228,-262.160137,0.0001972,2]
[388570428,1759243896239,-1000.0,0.00019721,2]
[388570429,1759243896248,-1000.0,0.00019721,2]
[388570430,1759243896258,-502.33996231,0.00019721,2]
[388570431,1759243896268,-1000.0,0.00019721,2]
[388570432,1759243896281,-512.93992176,0.00019721,2]
[388570433,1759243896290,-1000.0,0.00019721,2]
[388570434,1759243896300,-924.27112096,0.00019721,2]
[388570435,1759243896310,-1000.0,0.00019721,2]
[388570436,1759243896320,-1000.0,0.00019721,2]
[388570437,1759243896331,-1000.0,0.00019721,2]
[388570438,1759243896341,-1000.0,0.00019721,2]
[388570439,1759243896351,-1000.0,0.00019721,2]
[388570440,1759243896361,-485.15897709,0.00019721,2]
[388570441,1759243896371,-1000.0,0.00019721,2]
[388570442,1759243896381,-1000.0,0.00019721,2]
[388570443,1759243896390,-1000.0,0.00019721,2]
[388570444,1759243896400,-641.76988814,0.00019721,2]
[388570445,1759243896410,-1000.0,0.00019721,2]
[388570446,1759243896420,-1000.0,0.00019721,2]
[388570447,1759243896430,-1000.0,0.00019721,2]
[388570448,1759243896439,-1000.0,0.00019721,2]
[388570449,1759243896449,-1000.0,0.00019721,2]
[388570450,1759243896459,-1000.0,0.00019721,2]
[388570451,1759243896469,-1000.0,0.00019721,2]
[388570452,1759243896480,-1000.0,0.00019721,2]
[388570453,1759243896491,-1000.0,0.00019721,2]
[388570454,1759243896500,-1000.0,0.00019721,2]
[388570455,1759243896510,-1000.0,0.00019721,2]
[388570456,1759243896521,-300.0,0.00019725,2]
[388570457,1759243896531,-760.63,0.00019725,2]
[388570458,1759243896541,-760.63,0.00019725,2]
[388570459,1759243896551,-760.63,0.00019725,2]
[388570460,1759243896560,-760.63,0.00019725,2]
[388570461,1759243896570,-760.63,0.00019725,2]
[388570462,1759243896580,-760.63,0.00019725,2]
[388570463,1759243896590,-760.63,0.00019725,2]
[388570464,1759243896599,-760.67793809,0.00019725,2]
[388570465,1759243896609,-500.0,0.00019725,2]
[388570466,1759243896619,-500.0,0.00019725,2]
[388570467,1759243896628,-500.0,0.00019725,2]
[388570468,1759243896638,-500.0,0.00019725,2]
[388570469,1759243896647,-500.0,0.00019725,2]
[388570470,1759243896657,-500.0,0.00019725,2]
[388570471,1759243896668,-170.37122177,0.00019725,2]
[388570472,1759243896678,-282.26596518,0.00019726,2]
[388570473,1759243896688,-2070.0,0.00019726,2]
[388570474,1759243896697,-1178.0,0.00019726,2]
[388570475,1759243896708,-500.0,0.00019726,2]
[388570476,1759243896718,-500.0,0.00019726,2]
[388570477,1759243896727,-500.0,0.00019726,2]
[388570478,1759243896737,-500.0,0.00019726,2]
[388570479,1759243896747,-500.0,0.00019726,2]
[388570480,1759243896757,-500.0,0.00019726,2]
[388570481,1759243896766,-1794.56,0.00019726,2]
[388570482,1759243896779,-500.0,0.00019726,2]
[388570483,1759243896789,-500.0,0.00019726,2]
[388570484,1759243896799,-500.0,0.00019726,2]
[388570485,1759243896809,-500.0,0.00019726,2]
[388570486,1759243896818,-500.0,0.00019726,2]
[388570487,1759243896828,-790.46,0.00019726,2]
[388570488,1759243896837,-500.0,0.00019726,2]
[388570489,1759243896847,-500.0,0.00019726,2]
[388570490,1759243896857,-1123.47,0.00019726,2]
[388570491,1759243896867,-500.0,0.00019726,2]
[388570492,1759243896877,-500.0,0.00019726,2]
[388570493,1759243896887,-2122.31,0.00019726,2]
[388570494,1759243896896,-500.0,0.00019726,2]
[388570495,1759243896906,-687.57,0.00019726,2]
[388570496,1759243896915,-500.0,0.00019726,2]
[388570497,1759243896926,-564.82,0.00019726,2]
[388570498,1759243896938,-500.0,0.00019726,2]
[388570499,1759243896948,-500.0,0.00019726,2]
[388570500,1759243896958,-893.82,0.00019726,2]
[388570501,1759243896968,-856.58,0.00019726,2]
[388570502,1759243896978,-1295.14,0.00019726,2]
[388570503,1759243896987,-500.0,0.00019726,2]
[388570504,1759243896997,-764.57,0.00019726,2]
[388570505,1759243897007,-500.0,0.00019726,2]
[388570506,1759243897016,-1196.34,0.00019726,2]
[388570507,1759243897031,-509.76,0.00019726,2]
[388570508,1759243897041,-2188.31,0.00019726,2]
[388570509,1759243897054,-500.0,0.00019726,2]
[388570510,1759243897064,-500.0,0.00019726,2]
[388570511,1759243897074,-1218.61,0.00019726,2]
[388570512,1759243897083,-500.0,0.00019726,2]
[388570513,1759243897093,-958.82,0.00019726,2]
[388570514,1759243897103,-630.33,0.00019726,2]
[388570515,1759243897113,-500.0,0.00019726,2]
[388570516,1759243897126,-1273.89,0.00019726,2]
[388570517,1759243897135,-500.0,0.00019726,2]
[388570518,1759243897145,-525.28,0.00019726,2]
[388570519,1759243897154,-503.39,0.00019726,2]
[388570520,1759243897164,-500.0,0.00019726,2]
[388570521,1759243897174,-1071.14,0.00019726,2]
[388570522,1759243897184,-1398.82,0.00019726,2]
[388570523,1759243897194,-696.33,0.00019726,2]
[388570524,1759243897204,-500.0,0.00019726,2]
[388570525,1759243897213,-2382.23,0.00019726,2]
[388570526,1759243897223,-500.0,0.00019726,2]
[388570527,1759243897233,-500.0,0.00019726,2]
[388570528,1759243897244,-500.0,0.00019726,2]
[388570529,1759243897255,-500.0,0.00019726,2]
[388570530,1759243897264,-500.0,0.00019726,2]
[388570531,1759243897276,-500.0,0.00019726,2]
[388570532,1759243897286,-500.0,0.00019726,2]
[388570533,1759243897296,-1353.99,0.00019726,2]
[388570534,1759243897306,-2981.42,0.00019726,2]
[388570535,1759243897316,-500.0,0.00019726,2]
[388570536,1759243897326,-500.0,0.00019726,2]
[388570537,1759243897336,-1308.84,0.00019726,2]
[388570538,1759243897345,-853.67,0.00019726,2]
[388570539,1759243897355,-500.0,0.00019726,2]
[388570540,1759243897365,-500.0,0.00019726,2]
[388570541,1759243897376,-1118.36,0.00019726,2]
[388570542,1759243897617,-500.0,0.00019726,2]
[388570543,1759243897628,-500.0,0.00019726,2]
[388570544,1759243897638,-529.17,0.00019726,2]
[388570545,1759243897647,-1404.99,0.00019726,2]
[388570546,1759243897657,-1371.25,0.00019726,2]
[388570547,1759243897667,-840.45,0.00019726,2]
[388570548,1759243897676,-601.88,0.00019726,2]
[388570549,1759243897686,-994.21,0.00019726,2]
[388570550,1759243897696,-3647.16,0.00019726,2]
[388570551,1759243897706,-500.0,0.00019726,2]
[388570552,1759243897715,-1664.8,0.00019726,2]
[388570553,1759243897725,-500.0,0.00019726,2]
[388570554,1759243897734,-500.0,0.00019726,2]
[388570555,1759243897744,-930.02,0.00019726,2]
[388570556,1759243897754,-697.51,0.00019726,2]
[388570557,1759243897763,-870.66,0.00019726,2]
[388570558,1759243897773,-1869.72,0.00019726,2]
[388570559,1759243897783,-500.0,0.00019726,2]
[388570560,1759243897792,-770.57,0.00019726,2]
[388570561,1759243897802,-917.9,0.00019726,2]
[388570562,1759243897812,-1317.87,0.00019726,2]
[388570563,1759243897821,-500.0,0.00019726,2]
[388570564,1759243897831,-1444.33,0.00019726,2]
[388570565,1759243897840,-500.0,0.00019726,2]
[388570566,1759243897850,-500.0,0.00019726,2]
[388570567,1759243897859,-1037.15,0.00019726,2]
[388570568,1759243897868,-539.02,0.00019726,2]
[388570569,1759243897878,-700.38,0.00019726,2]
[388570570,1759243897888,-706.82,0.00019726,2]
[388570571,1759243897898,-1261.41,0.00019726,2]
[388570572,1759243897908,-494.58617956,0.00019726,2]
[388570573,1759243897918,-534.28467081,0.00019726,2]
[388570574,1759243897929,-1628.15,0.00019726,2]
[388570575,1759243897940,-500.0,0.00019726,2]
[388570576,1759243897950,-500.0,0.00019726,2]
[388570577,1759243897960,-649.79,0.00019726,2]
[388570578,1759243897970,-500.0,0.00019726,2]
[388570579,1759243897980,-1690.62,0.00019726,2]
[388570580,1759243897990,-500.0,0.00019726,2]
[388570581,1759243898004,-942.67,0.00019726,2]
[388570582,1759243898014,-500.0,0.00019726,2]
[388570583,1759243898030,-500.0,0.00019726,2]
[388570584,1759243898044,-500.0,0.00019726,2]
[388570585,1759243898057,-2355.68,0.00019726,2]
[388570586,1759243898067,-500.0,0.00019726,2]
[388570587,1759243898076,-500.0,0.00019726,2]
[388570588,1759243898086,-500.0,0.00019726,2]
[388570589,1759243898095,-500.0,0.00019726,2]
[388570590,1759243898105,-500.0,0.00019726,2]
[388570591,1759243898115,-2303.94,0.00019726,2]
[388570592,1759243898125,-500.0,0.00019726,2]
[388570593,1759243898135,-500.0,0.00019726,2]
[388570594,1759243898144,-1205.95,0.00019726,2]
[388570595,1759243898154,-500.0,0.00019726,2]
[388570596,1759243898164,-500.0,0.00019726,2]
[388570597,1759243898173,-1349.58,0.00019726,2]
[388570598,1759243898183,-500.0,0.00019726,2]
[388570599,1759243898193,-500.0,0.00019726,2]
[388570600,1759243898202,-583.03,0.00019726,2]
[388570601,1759243898211,-355.14252573,0.00019726,2]
[388570602,1759243898221,-500.0,0.00019726,2]
[388570603,1759243898230,-1719.54,0.00019726,2]
[388570604,1759243898240,-500.0,0.00019726,2]
[388570605,1759243898250,-500.0,0.00019726,2]
[388570606,1759243898259,-577.69,0.00019726,2]
[388570607,1759243898268,-500.0,0.00019726,2]
[388570608,1759243898280,-500.0,0.00019726,2]
[388570609,1759243898290,-500.0,0.00019726,2]
[388570610,1759243898300,-500.0,0.00019726,2]
[388570611,1759243898310,-500.0,0.00019726,2]
[388570612,1759243898320,-500.0,0.00019726,2]
[388570613,1759243898330,-500.0,0.00019726,2]
[388570614,1759243898340,-714.17,0.00019726,2]
[388570615,1759243898350,-3480.02,0.00019726,2]
[388570616,1759243898359,-500.0,0.00019726,2]
[388570617,1759243898369,-2223.14,0.00019726,2]
[388570618,1759243898379,-500.0,0.00019726,2]
[388570619,1759243898388,-500.0,0.00019726,2]
[388570620,1759243898398,-500.0,0.00019726,2]
[388570621,1759243898409,-1204.95,0.00019726,2]
[388570622,1759243898419,-300.0,0.00019726,2]
[388570623,1759243898429,-601.21,0.00019726,2]
[388570624,1759243898439,-500.0,0.00019726,2]
[388570625,1759243898448,-504.07,0.00019726,2]
[388570626,1759243898458,-746.93,0.00019726,2]
[388570627,1759243898469,-500.0,0.00019726,2]
[388570628,1759243898479,-171.1059437,0.00019726,2]
[388570629,1759243898488,-548.16,0.00019726,2]
[388570630,1759243898497,-500.0,0.00019726,2]
[388570631,1759243898507,-500.0,0.00019726,2]
[388570632,1759243898517,-500.0,0.00019726,2]
[388570633,1759243898529,-1039.41,0.00019726,2]
[388570634,1759243898539,-500.0,0.00019726,2]
[388570635,1759243898549,-500.0,0.00019726,2]
[388570636,1759243898558,-2637.95,0.00019726,2]
[388570637,1759243898568,-500.0,0.00019726,2]
[388570638,1759243898577,-500.0,0.00019726,2]
[388570639,1759243898588,-600.0,0.00019726,2]
[388570640,1759243898605,-500.0,0.00019726,2]
[388570641,1759243898615,-600.0,0.00019726,2]
[388570642,1759243898625,-1201.28,0.00019726,2]
[388570643,1759243898635,-500.0,0.00019726,2]
[388570644,1759243898645,-500.0,0.00019726,2]
[388570645,1759243898655,-1141.3,0.00019726,2]
[388570646,1759243898665,-500.0,0.00019726,2]
[388570647,1759243898674,-500.0,0.00019726,2]
[388570648,1759243898684,-500.0,0.00019726,2]
[388570649,1759243898694,-500.0,0.00019726,2]
[388570650,1759243898704,-500.0,0.00019726,2]
[388570651,1759243898714,-575.5,0.00019726,2]
[388570652,1759243898724,-772.56,0.00019726,2]
[388570653,1759243898734,-623.68339132,0.00019726,2]
[388570654,1759243898744,-1182.85,0.00019726,2]
[388570655,1759243898755,-500.0,0.00019726,2]
[388570656,1759243898765,-758.29,0.00019726,2]
[388570657,1759243898779,-500.0,0.00019726,2]
[388570658,1759243898790,-500.0,0.00019726,2]
[388570659,1759243898800,-500.0,0.00019726,2]
[388570660,1759243898809,-955.85,0.00019726,2]
[388570661,1759243898819,-643.62184442,0.00019726,2]
[388570662,1759243898829,-500.0,0.00019726,2]
[388570663,1759243898839,-1369.16,0.00019726,2]